bitfinex-derivatives/quotes_SOLF0:USTF0_20241217
["timestamp","ask_amount","ask_price","bid_price","bid_amount"]
[1734461676854,98.14599451,227.57,227.51,2.1973]
[1734461676855,484.87994548,227.55,227.49,4.766758]
[1734461677152,181.83036915,227.54,227.5,2.9]
[1734461677546,181.83036915,227.52,227.5,2.9]
[1734461677750,181.83036915,227.52,227.51,2.1973]
[1734461677953,177.15326915,227.52,227.51,2.1973]
[1734461678253,85.8777452,227.53,227.51,2.1973]
[1734461678748,98.14599451,227.57,227.51,2.1973]
[1734461678954,2.1971,227.54,227.45,2.1978]
[1734461679254,14.68906297,227.58,227.44,5.2484883]
[1734461679455,2.1976,227.49,227.45,2.9]
[1734461679857,14.68906297,227.58,227.44,5.2484883]
[1734461680154,14.68906297,227.58,227.46,2.9]
[1734461680453,2.1973,227.51,227.46,2.9]
[1734461680652,2.1973,227.51,227.47,0.38074]
[1734461680854,2.1973,227.51,227.47,3.43804]
[1734461681253,14.68906297,227.58,227.47,3.43804]
[1734461681850,2.1976,227.49,227.47,0.38074]
[1734461682357,2.1971,227.54,227.47,0.38074]
[1734461682655,14.68906297,227.6,227.47,0.38074]
[1734461683057,2.1972,227.53,227.47,0.38074]
[1734461683356,14.68906297,227.6,227.47,0.38074]
[1734461684456,2.197,227.55,227.47,0.38074]
[1734461686256,14.68906297,227.6,227.47,0.38074]
[1734461686455,2.1967,227.58,227.47,0.38074]
[1734461686854,2.1968,227.57,227.49,2.1975]
[1734461687055,2.1968,227.57,227.5,2.9]
[1734461688953,17.76136297,227.64,227.5,2.9]
[1734461689165,2.1971,227.54,227.5,2.9]
[1734461689659,17.76136297,227.64,227.5,2.9]
[1734461690661,14.68906297,227.6,227.51,2.9]
[1734461690858,14.68906297,227.6,227.52,2.9]
[1734461691065,14.68906297,227.6,227.53,2.9]
[1734461692362,2.1968,227.56,227.53,2.9]
[1734461692761,17.76136297,227.64,227.53,2.9]
[1734461693159,3.0723,227.64,227.53,5.0971]
[1734461693364,3.0723,227.64,227.53,2.9]
[1734461693661,14.68906297,227.57,227.47,0.38074]
[1734461694363,16.88586297,227.57,227.48,2.1976]
[1734461694560,2.1968,227.57,227.48,2.1976]
[1734461694866,2.1968,227.57,227.47,0.38074]
[1734461695065,2.1968,227.57,227.48,2.1976]
[1734461695367,2.1969,227.56,227.48,2.1976]
[1734461695561,14.68906297,227.61,227.47,0.38074]
[1734461695867,14.68906297,227.61,227.49,2.1975]
[1734461696765,2.1969,227.56,227.49,2.1975]
[1734461698868,14.68906297,227.57,227.5,2.9]
[1734461699260,14.68906297,227.57,227.47,0.38074]
[1734461699464,2.1975,227.49,227.47,0.38074]
[1734461700266,2.197,227.54,227.47,3.28074]
[1734461700457,14.68906297,227.57,227.47,3.28074]
[1734461701065,5.20333964,227.53,227.47,3.28074]
[1734461701261,5.20333964,227.53,227.47,0.38074]
[1734461701570,2.1976,227.48,227.47,0.38074]
[1734461702268,2.9205,227.52,227.47,0.38074]
[1734461702467,5.20333964,227.53,227.47,0.38074]
[1734461703165,2.1974,227.51,227.47,0.38074]
[1734461703365,5.20333964,227.53,227.47,0.38074]
[1734461703771,5.20333964,227.53,227.47,3.28074]
[1734461704064,2.9205,227.58,227.47,3.28074]
[1734461704269,2.197,227.55,227.47,3.28074]
[1734461704470,2.9205,227.58,227.47,3.28074]
[1734461704774,2.1969,227.56,227.47,3.28074]
[1734461705167,2.9205,227.58,227.47,3.28074]
[1734461706067,14.68906297,227.63,227.47,3.28074]
[1734461706367,14.68906297,227.63,227.48,2.8929]
[1734461706671,3.0495,227.64,227.48,2.8929]
[1734461706879,5.22157839,227.65,227.5,14.68906297]
[1734461707067,5.22157839,227.65,227.49,3.0097]
[1734461707270,5.22157839,227.65,227.5,3.0636]
[1734461707768,2.1964,227.61,227.55,2.1969]
[1734461707964,5.22157839,227.65,227.56,2.92]
[1734461709072,2.1962,227.64,227.56,5.1167]
[1734461709270,5.22157839,227.65,227.51,18.10404508]
[1734461709465,5.22157839,227.65,227.5,21.16764508]
[1734461709669,5.22157839,227.65,227.51,6.84221976]
[1734461709872,2.1965,227.61,227.55,2.1969]
[1734461710073,14.4020772,227.65,227.53,9.18049881]
[1734461710277,2.9011,227.66,227.54,3.92133405]
[1734461710477,8.28717465,227.66,227.53,9.18049881]
[1734461710674,2.1961,227.64,227.58,2.1966]
[1734461710976,2.1961,227.64,227.59,2.92]
[1734461711669,7.58207465,227.66,227.59,2.92]
[1734461711875,9.17809765,227.7,227.59,2.92]
[1734461713373,5.30993753,227.72,227.59,12.09809765]
[1734461713576,5.30993753,227.72,227.6,8.6523]
[1734461713775,2.1953,227.73,227.62,9.17809765]
[1734461714078,9.17809765,227.76,227.62,9.17809765]
[1734461715276,2.1952,227.73,227.68,2.1957]
[1734461715583,2.1952,227.73,227.69,2.92]
[1734461715876,4.3863,227.95,227.7,18.3561953]
[1734461716076,2.8236,227.94,227.75,9.17809765]
[1734461716279,2.8236,227.94,227.76,5.8757]
[1734461716470,2.8236,227.94,227.76,8.8567]
[1734461716671,9.17809765,227.89,227.76,8.8567]
[1734461717577,9.17809765,227.86,227.76,2.92]
[1734461717973,14.66511874,227.86,227.76,2.92]
[1734461718173,14.66511874,227.86,227.72,5.9288]
[1734461718382,14.66511874,227.82,227.73,2.92]
[1734461718682,2.195,227.76,227.69,2.92]
[1734461718886,3.0289,227.81,227.69,2.92]
[1734461719384,2.1947,227.79,227.69,2.92]
[1734461719579,14.66511874,227.87,227.69,2.92]
[1734461719781,2.1945,227.8,227.71,2.1953]
[1734461719974,14.66511874,227.87,227.71,2.1953]
[1734461720172,14.66511874,227.87,227.69,2.92]
[1734461720372,14.66511874,227.87,227.72,2.1953]
[1734461720575,14.66511874,227.87,227.69,2.92]
[1734461720776,2.1942,227.84,227.76,2.1949]
[1734461720977,5.16201564,227.91,227.77,3.1]
[1734461721382,5.16201564,227.91,227.79,14.66511874]
[1734461721682,3.0289,227.95,227.78,3.0804]
[1734461721881,2.1935,227.91,227.82,2.1942]
[1734461722085,5.15010957,227.93,227.78,3.0804]
[1734461722285,5.15010957,227.93,227.8,14.66511874]
[1734461722484,2.1935,227.91,227.84,2.194]
[1734461722788,2.1935,227.91,227.85,3.1]
[1734461724575,2.8999,227.99,227.85,3.1]
[1734461724776,2.1935,227.92,227.85,5.294]
[1734461724982,2.8999,227.99,227.78,17.74551874]
[1734461724983,5.21911445,227.94,227.78,17.74551874]
[1734461725284,14.66511874,227.88,227.79,3.1]
[1734461725483,3.0016,227.87,227.79,3.1]
[1734461725678,8.7319,227.87,227.79,3.1]
[1734461726580,2.1946,227.8,227.79,3.1]
[1734461727181,8.7319,227.87,227.79,3.1]
[1734461727989,2.1941,227.85,227.79,3.1]
[1734461728186,14.66199087,227.92,227.79,3.1]
[1734461728587,2.1937,227.89,227.79,3.1]
[1734461728789,14.66199087,227.92,227.8,3.1]
[1734461730486,2.194,227.86,227.8,3.1]
[1734461730980,2.1943,227.82,227.8,3.1]
[1734461731185,14.66199087,227.87,227.8,3.1]
[1734461731581,2.1941,227.84,227.77,3.1]
[1734461731892,2.9377,227.86,227.77,3.1]
[1734461732585,2.1945,227.81,227.73,2.1952]
[1734461732984,2.1945,227.81,227.74,3.1]
[1734461733992,2.1945,227.8,227.74,3.1]
[1734461734590,2.9377,227.86,227.74,3.1]
[1734461734787,5.8544,227.93,227.74,3.1]
[1734461734983,2.1936,227.91,227.82,2.1943]
[1734461735183,2.1936,227.91,227.83,3.1]
[1734461735497,5.21911445,227.94,227.83,3.1]
[1734461735688,5.21911445,227.94,227.87,2.1938]
[1734461735989,5.21911445,227.94,227.83,17.76199087]
[1734461736182,7.41231445,227.94,227.85,2.194]
[1734461736689,7.41231445,227.94,227.83,17.76199087]
[1734461736690,7.41231445,227.94,227.86,2.194]
[1734461736991,7.41231445,227.94,227.83,17.76199087]
[1734461737192,23.46929087,228.02,227.89,2.1936]
[1734461737492,17.60409087,228.02,227.9,3.1]
[1734461737689,2.9421,228.02,227.9,3.1]
[1734461738288,17.60409087,228.02,227.9,3.1]
[1734461739094,5.14905341,227.99,227.9,3.1]
[1734461739495,5.14905341,227.99,227.9,5.2935]
[1734461739695,5.14905341,227.99,227.9,3.1]
[1734461741492,2.1931,227.95,227.9,3.1]
[1734461741688,5.14905341,227.99,227.9,3.1]
[1734461742088,5.14905341,227.99,227.91,3.1]
[1734461742588,2.1934,227.92,227.91,3.1]
[1734461742789,19.81104428,227.99,227.88,3.1]
[1734461743097,19.81104428,227.99,227.85,3.1]
[1734461743098,14.66199087,227.95,227.85,3.1]
[1734461743298,2.194,227.86,227.84,3.1]
[1734461743596,2.194,227.86,227.83,3.1]
[1734461744490,14.66199087,227.95,227.83,3.1]
[1734461744689,5.8685,227.98,227.83,3.1]
[1734461745091,2.1933,227.93,227.83,3.1]
[1734461745492,5.8685,227.98,227.84,6.0232]
[1734461746292,2.1934,227.93,227.85,2.194]
[1734461746793,5.8685,227.98,227.85,2.194]
[1734461746998,19.81104428,227.99,227.87,2.1938]
[1734461747399,5.14905341,227.99,227.84,8.9219]
[1734461747599,5.14905341,227.99,227.89,2.1937]
[1734461747795,5.14905341,227.99,227.9,3.1]
[1734461748498,2.1929,227.97,227.9,3.1]
[1734461749099,5.14905341,227.99,227.9,3.1]
[1734461749803,2.193,227.96,227.91,4.55835411]
[1734461750003,2.193,227.96,227.9,3.1]
[1734461750299,2.193,227.96,227.91,4.55938908]
[1734461750502,5.14905341,227.99,227.92,4.55938908]
[1734461750699,2.1929,227.98,227.9,5.2935]
[1734461751002,5.14905341,227.99,227.91,4.55867152]
[1734461751304,5.14905341,227.99,227.92,4.55867152]
[1734461751499,5.14905341,227.99,227.93,4.55867152]
[1734461751696,5.14905341,227.99,227.9,3.1]
[1734461751903,5.14905341,227.99,227.91,4.56231455]
[1734461752199,5.14905341,227.99,227.9,3.1]
[1734461752398,5.14905341,227.99,227.91,4.56322799]
[1734461752602,5.14905341,227.99,227.9,3.1]
[1734461752902,2.1931,227.95,227.91,4.56233791]
[1734461753096,2.1931,227.95,227.92,4.56233791]
[1734461753296,2.1931,227.95,227.9,3.1]
[1734461753496,2.1931,227.95,227.91,4.56415422]
[1734461753701,2.1931,227.95,227.92,4.56415422]
[1734461753898,2.1931,227.95,227.93,4.56294244]
[1734461754096,5.14905341,227.99,227.9,3.1]
[1734461754294,2.193,227.96,227.91,4.56524958]
[1734461754504,2.193,227.96,227.92,4.56524958]
[1734461754708,5.14905341,227.99,227.93,4.56524958]
[1734461755003,2.1929,227.97,227.94,4.56524958]
[1734461755200,2.1929,227.97,227.9,3.1]
[1734461755401,2.1929,227.97,227.91,2.1934]
[1734461755606,2.1929,227.97,227.91,6.76197988]
[1734461755806,2.1929,227.97,227.91,2.1934]
[1734461756005,2.1929,227.97,227.92,4.56735138]
[1734461756202,5.28503339,228.0,227.91,2.1934]
[1734461756506,5.28503339,228.0,227.92,4.57096179]
[1734461756706,5.28503339,228.0,227.93,4.57096179]
[1734461756907,5.28503339,228.0,227.91,2.1934]
[1734461757105,5.28503339,228.0,227.92,4.57040385]
[1734461757301,14.66199087,228.06,227.93,4.57040385]
[1734461757504,14.66199087,228.06,227.92,2.1933]
[1734461757703,14.66199087,228.06,227.93,4.57382493]
[1734461757904,14.66199087,228.06,227.92,2.1933]
[1734461758103,5.20865246,228.02,227.93,4.57410719]
[1734461758403,5.20865246,228.02,227.94,4.57410719]
[1734461758601,5.20865246,228.02,227.9,3.1]
[1734461758801,19.87064333,228.02,227.91,4.57843666]
[1734461759008,19.87064333,228.02,227.92,4.57843666]
[1734461759207,19.87064333,228.02,227.93,4.57843666]
[1734461759408,19.87064333,228.02,227.9,3.1]
[1734461759609,2.1929,227.98,227.91,6.77389604]
[1734461759809,2.1929,227.98,227.92,4.58049604]
[1734461760008,2.1929,227.98,227.93,4.58049604]
[1734461760211,2.1929,227.98,227.94,4.58049604]
[1734461760410,2.1929,227.98,227.95,4.58049604]
[1734461760611,2.1929,227.98,227.96,3.16]
[1734461762306,2.1928,227.99,227.96,3.16]
[1734461762714,5.20865246,228.02,227.96,3.16]
[1734461763414,2.1932,227.95,227.89,2.1937]
[1734461763614,2.1932,227.95,227.9,7.74447445]
[1734461763811,2.1932,227.95,227.91,4.58447445]
[1734461764010,2.193,227.96,227.92,4.58447445]
[1734461764214,2.193,227.96,227.93,4.58447445]
[1734461764414,2.193,227.96,227.9,5.3535]
[1734461764715,2.193,227.96,227.91,4.58621532]
[1734461765012,2.193,227.96,227.92,4.58621532]
[1734461765207,2.193,227.96,227.93,4.58621532]
[1734461765404,2.193,227.96,227.9,5.3535]
[1734461765606,2.193,227.96,227.91,4.58750582]
[1734461765813,2.193,227.96,227.92,4.58750582]
[1734461766009,2.1929,227.97,227.93,4.58750582]
[1734461766319,9.14985719,228.1,227.94,13.73622549]
[1734461766611,2.1922,228.05,227.97,9.14985719]
[1734461766814,5.30955823,228.09,227.96,2.8112]
[1734461767005,2.1928,227.98,227.97,4.58552804]
[1734461767206,2.1928,227.98,227.95,8.9759]
[1734461767405,9.14985719,228.01,227.95,3.16]
[1734461767813,2.193,227.96,227.95,3.16]
[1734461768009,9.14985719,228.01,227.95,3.16]
[1734461768312,2.193,227.97,227.95,3.16]
[1734461768511,9.14985719,228.01,227.95,3.16]
[1734461768708,9.14985719,228.04,227.95,3.16]
[1734461769611,9.14985719,228.07,227.95,3.16]
[1734461770206,9.14985719,228.07,227.96,4.57447234]
[1734461770410,9.14985719,228.07,227.95,3.16]
[1734461770610,9.14985719,228.07,227.96,4.57314578]
[1734461770915,5.30955823,228.09,227.95,3.16]
[1734461771312,5.30955823,228.09,227.97,2.1929]
[1734461771313,2.1921,228.06,227.97,2.1929]
[1734461771513,5.30955823,228.09,227.96,24.19237753]
[1734461771813,5.30955823,228.09,227.97,4.57297706]
[1734461772014,2.1923,228.03,227.96,2.193]
[1734461772209,5.30955823,228.09,227.97,4.57319171]
[1734461772406,2.1921,228.06,227.97,11.34275719]
[1734461772608,5.30955823,228.09,227.97,9.14985719]
[1734461772807,9.14985719,228.07,227.95,3.16]
[1734461773207,9.14985719,228.04,227.95,3.16]
[1734461773511,9.14985719,228.04,227.9,145.15426523]
[1734461773716,9.14985719,228.04,227.91,3.16]
[1734461774120,2.1931,227.95,227.91,3.16]
[1734461774816,9.14985719,227.98,227.87,6.0079]
[1734461775117,9.14985719,227.95,227.88,3.16]
[1734461775313,9.14985719,227.95,227.87,3.16]
[1734461776910,9.14985719,227.92,227.81,6.11]
[1734461777114,9.14985719,227.92,227.82,12.23945375]
[1734461777313,9.14985719,227.92,227.83,15.39945375]
[1734461777519,9.14985719,227.92,227.84,12.23945375]
[1734461777815,9.14985719,227.92,227.85,4.5826483]
[1734461778021,9.14985719,227.92,227.83,3.16]
[1734461778322,2.1939,227.87,227.84,4.7863568]
[1734461778624,2.1939,227.87,227.83,3.16]
[1734461778921,2.1939,227.87,227.84,4.78872001]
[1734461779224,2.1939,227.87,227.83,3.16]
[1734461779518,5.24051594,227.97,227.83,3.16]
[1734461779719,9.14985719,227.95,227.84,4.66587179]
[1734461779920,2.1939,227.87,227.83,3.16]
[1734461780121,9.14985719,227.95,227.83,3.16]
[1734461780321,2.1939,227.87,227.83,3.16]
[1734461780828,9.14985719,227.95,227.83,3.16]
[1734461781024,9.14985719,227.89,227.77,268.45779546]
[1734461781222,9.14985719,227.89,227.74,265.49009546]
[1734461781421,9.14985719,227.89,227.75,7.76745338]
[1734461781623,9.14985719,227.89,227.76,4.66745338]
[1734461781922,9.14985719,227.89,227.77,4.66745338]
[1734461782222,9.14985719,227.89,227.76,9.14985719]
[1734461782426,9.14985719,227.89,227.77,4.60833892]
[1734461782627,9.14985719,227.89,227.76,81.7269898]
[1734461782830,9.14985719,227.89,227.77,4.60631307]
[1734461783124,8.34051594,227.97,227.77,4.60631307]
[1734461783125,5.24051594,227.97,227.82,9.14985719]
[1734461783326,5.24051594,227.97,227.85,9.14985719]
[1734461783629,9.14985719,227.96,227.83,3.1]
[1734461784024,9.14985719,227.96,227.84,4.69877872]
[1734461784225,9.14985719,227.96,227.83,3.1]
[1734461784425,2.1934,227.92,227.84,4.69777108]
[1734461784626,2.1934,227.92,227.83,5.2942]
[1734461784827,2.1934,227.92,227.84,4.69797001]
[1734461785027,2.1934,227.92,227.85,7.79797001]
[1734461785227,2.1936,227.9,227.85,3.1]
[1734461785431,9.14985719,227.96,227.85,3.1]
[1734461785729,9.14985719,227.92,227.85,3.1]
[1734461786137,9.14985719,227.92,227.86,5.79660435]
[1734461786323,9.14985719,227.92,227.84,3.1]
[1734461786520,9.14985719,227.92,227.85,4.69860787]
[1734461786721,9.14985719,227.92,227.86,4.69860787]
[1734461786925,9.14985719,227.92,227.84,3.1]
[1734461787230,12.19225719,227.95,227.85,13.6181003]
[1734461787423,2.1935,227.92,227.86,12.5202539]
[1734461787627,2.1935,227.92,227.87,12.5202539]
[1734461787829,5.24051594,227.97,227.88,12.5202539]
[1734461788028,5.24051594,227.97,227.89,12.5202539]
[1734461788230,5.24051594,227.97,227.9,15.6202539]
[1734461788430,5.24051594,227.97,227.91,12.5202539]
[1734461788631,2.1933,227.93,227.92,4.69868844]
[1734461789129,5.24051594,227.97,227.92,12.51441298]
[1734461789333,5.24051594,227.97,227.93,12.51441298]
[1734461789334,2.193,227.97,227.93,12.51441298]
[1734461789537,2.193,227.97,227.94,12.51441298]
[1734461789726,9.14985719,228.01,227.95,12.51441298]
[1734461789933,9.14985719,228.01,227.96,12.51441298]
[1734461790130,9.14985719,228.01,227.91,5.42189776]
[1734461790131,9.14985719,228.01,227.97,4.69868844]
[1734461790332,9.14985719,228.01,227.98,4.69868844]
[1734461790333,2.1927,227.99,227.98,4.69868844]
[1734461792129,9.14985719,228.01,227.93,3.1]
[1734461792434,2.1932,227.94,227.93,3.1]
[1734461794133,9.14985719,227.94,227.84,145.15426523]
[1734461794332,9.14985719,227.9,227.85,12.64830422]
[1734461794535,9.14985719,227.9,227.86,4.86473239]
[1734461794736,9.14985719,227.9,227.84,3.1]
[1734461794934,9.14985719,227.87,227.76,148.01876523]
[1734461795136,9.14985719,227.87,227.77,15.7590165]
[1734461795433,9.14985719,227.87,227.78,4.8688525]
[1734461795638,9.14985719,227.87,227.77,3.1]
[1734461795840,9.14985719,227.87,227.78,3.1]
[1734461796039,14.66482715,227.87,227.78,3.1]
[1734461796239,2.1945,227.81,227.78,3.1]
[1734461796841,14.66482715,227.87,227.78,3.1]
[1734461797036,14.66482715,227.88,227.75,3.0301]
[1734461797239,14.66482715,227.88,227.76,3.1]
[1734461797737,2.1944,227.81,227.76,3.1]
[1734461800934,2.1941,227.85,227.76,3.1]
[1734461801441,2.1941,227.85,227.77,12.28092617]
[1734461801637,2.1941,227.85,227.78,12.28092617]
[1734461801840,2.1941,227.85,227.79,4.72343314]
[1734461802042,2.1941,227.85,227.76,3.1]
[1734461802244,2.1941,227.85,227.77,12.27939841]
[1734461802442,2.1941,227.85,227.78,4.72284554]
[1734461802642,2.1941,227.85,227.79,4.72284554]
[1734461802945,2.1941,227.85,227.77,2.1948]
[1734461803145,2.1941,227.85,227.78,12.27648996]
[1734461803345,2.1942,227.84,227.79,4.72159128]
[1734461803542,2.1942,227.84,227.8,4.72159128]
[1734461803744,2.1942,227.84,227.77,2.1948]
[1734461803942,2.1942,227.84,227.78,4.72107305]
[1734461804238,2.1942,227.84,227.79,4.72107305]
[1734461804447,2.1945,227.81,227.73,24.19237753]
[1734461804641,14.66482715,227.84,227.74,12.27644696]
[1734461804842,14.66482715,227.84,227.75,4.72171037]
[1734461805047,14.66482715,227.84,227.71,50.2]
[1734461805244,14.66482715,227.84,227.73,3.1]
[1734461805439,2.1951,227.74,227.73,3.1]
[1734461805645,2.1951,227.74,227.73,4.72281191]
[1734461805844,14.66482715,227.79,227.69,3.1]
[1734461806145,2.1955,227.7,227.67,3.1]
[1734461806348,2.1955,227.7,227.68,7.55806904]
[1734461806645,14.66482715,227.79,227.67,3.1]
[1734461806646,2.1954,227.72,227.67,3.1]
[1734461807147,2.1954,227.72,227.68,4.72369862]
[1734461807347,14.66482715,227.79,227.67,3.1]
[1734461807548,14.66482715,227.79,227.68,4.72082904]
[1734461807848,2.1949,227.76,227.67,3.1]
[1734461808049,2.1949,227.76,227.68,4.58494568]
[1734461808245,2.1949,227.76,227.67,3.1]
[1734461808549,2.1949,227.76,227.68,4.58481638]
[1734461808846,2.1949,227.76,227.67,5.2958]
[1734461809549,5.28130576,227.82,227.68,4.58285797]
[1734461809749,5.28130576,227.82,227.67,148.25426523]
[1734461809949,5.28130576,227.82,227.68,223.27446731]
[1734461810246,5.28130576,227.82,227.7,14.66482715]
[1734461810645,5.28130576,227.82,227.74,2.195]
[1734461810849,5.28130576,227.82,227.75,9.0142]
[1734461811350,5.28130576,227.82,227.75,11.2092]
[1734461814345,2.1942,227.84,227.75,9.0142]
[1734461814545,2.1942,227.84,227.76,14.63573579]
[1734461814755,2.1942,227.84,227.77,4.78493684]
[1734461815049,2.1941,227.84,227.78,4.78493684]
[1734461815252,2.1941,227.84,227.79,4.78493684]
[1734461815451,2.1941,227.84,227.8,4.78493684]
[1734461815653,2.1941,227.84,227.81,3.04]
[1734461816248,2.194,227.86,227.81,3.04]
[1734461816455,14.66482715,227.89,227.81,3.04]
[1734461816853,14.66482715,227.89,227.75,5.9742]
[1734461816854,2.1946,227.79,227.76,3.04]
[1734461817054,2.1946,227.79,227.77,4.79318954]
[1734461817254,14.66482715,227.84,227.76,3.04]
[1734461817455,14.66482715,227.84,227.77,4.79615364]
[1734461817753,14.66482715,227.84,227.76,3.04]
[1734461817952,2.1947,227.78,227.77,4.79742615]
[1734461818258,2.1947,227.78,227.76,3.04]
[1734461818553,9.16781449,227.82,227.76,3.04]
[1734461818955,9.16781449,227.82,227.77,4.78438586]
[1734461819154,9.16781449,227.82,227.76,3.04]
[1734461819456,9.16781449,227.85,227.77,4.78503732]
[1734461819653,9.16781449,227.85,227.78,4.78503732]
[1734461819855,9.16781449,227.85,227.79,4.78503732]
[1734461820056,2.1943,227.82,227.76,3.04]
[1734461820251,2.1943,227.82,227.77,12.44056552]
[1734461820455,2.1943,227.82,227.78,12.44056552]
[1734461820656,2.1942,227.83,227.79,4.78483289]
[1734461820859,2.1942,227.83,227.8,4.78483289]
[1734461821055,2.1942,227.83,227.81,4.78483289]
[1734461821260,2.1943,227.82,227.76,3.04]
[1734461821661,2.1943,227.82,227.77,12.44149037]
[1734461821861,2.1943,227.82,227.78,12.44149037]
[1734461822063,9.16781449,227.85,227.79,12.44149037]
[1734461822268,2.1945,227.81,227.76,3.04]
[1734461822463,2.1945,227.81,227.77,12.44755785]
[1734461822661,9.16781449,227.85,227.78,4.78752225]
[1734461822662,2.1943,227.83,227.78,4.78752225]
[1734461822861,2.1943,227.83,227.79,4.78752225]
[1734461823061,9.16781449,227.85,227.8,4.78752225]
[1734461823260,9.16781449,227.85,227.76,3.04]
[1734461823458,9.16781449,227.85,227.77,12.44556087]
[1734461823663,9.16781449,227.85,227.76,3.04]
[1734461823877,9.16781449,227.85,227.77,4.78694339]
[1734461824064,9.16781449,227.88,227.76,3.04]
[1734461824261,12.21711449,227.91,227.77,4.78732561]
[1734461824565,2.1939,227.87,227.79,2.1946]
[1734461824763,12.21711449,227.91,227.79,3.0212]
[1734461825064,2.1943,227.83,227.79,3.0212]
[1734461825261,9.16781449,227.87,227.79,3.0212]
[1734461825965,2.1944,227.82,227.79,3.0212]
[1734461826162,9.16781449,227.87,227.79,3.0212]
[1734461826660,3.0493,227.91,227.74,2.1951]
[1734461826862,9.16781449,227.81,227.71,3.04]
[1734461827158,9.16781449,227.81,227.65,9.16781449]
[1734461827159,18.33562898,227.72,227.58,8.12659942]
[1734461827365,9.16781449,227.64,227.59,86.05061539]
[1734461827558,9.16781449,227.6,227.48,181.33789643]
[1734461827757,9.16781449,227.54,227.48,181.33789643]
[1734461827958,9.16781449,227.54,227.46,181.33789643]
[1734461828163,2.1973,227.51,227.44,3.04]
[1734461828363,2.1973,227.51,227.45,3.04]
[1734461828563,2.1975,227.5,227.45,3.04]
[1734461828856,14.70612926,227.52,227.45,3.04]
[1734461829058,14.70612926,227.48,227.44,3.04]
[1734461829269,16.90382926,227.48,227.44,3.04]
[1734461829566,2.1977,227.48,227.44,3.04]
[1734461830861,2.1975,227.5,227.44,3.04]
[1734461831264,14.70612926,227.52,227.44,3.04]
[1734461832664,14.70612926,227.56,227.44,3.04]
[1734461832964,2.1971,227.54,227.44,3.04]
[1734461833267,14.70612926,227.56,227.44,3.04]
[1734461833862,2.197,227.55,227.44,5.238]
[1734461834069,5.16330553,227.51,227.44,5.238]
[1734461834364,5.16330553,227.51,227.44,3.04]
[1734461834967,2.1969,227.56,227.44,3.04]
[1734461835166,14.70612926,227.6,227.44,17.74612926]
[1734461835571,2.1969,227.56,227.45,2.1978]
[1734461836364,14.70612926,227.6,227.45,2.1978]
[1734461836569,2.197,227.55,227.45,2.1978]
[1734461836774,14.70612926,227.6,227.44,17.74612926]
[1734461836966,2.1975,227.5,227.4,20.76022926]
[1734461837271,5.29315353,227.54,227.41,3.04]
[1734461838167,2.1976,227.48,227.41,3.04]
[1734461838373,2.1976,227.48,227.4,6.0541]
[1734461838672,2.1976,227.48,227.41,3.04]
[1734461838966,2.1978,227.47,227.41,3.04]
[1734461839470,5.29315353,227.54,227.41,3.04]
[1734461840571,2.1975,227.5,227.41,5.2383]
[1734461840770,2.1975,227.5,227.41,3.04]
[1734461840974,5.29315353,227.54,227.41,3.04]
[1734461841667,7.49025353,227.54,227.41,3.04]
[1734461841973,5.29315353,227.54,227.44,14.70612926]
[1734461842170,2.1968,227.57,227.44,14.70612926]
[1734461842374,5.20411537,227.56,227.45,2.98]
[1734461843478,5.20411537,227.56,227.49,2.1975]
[1734461843479,2.1969,227.55,227.49,2.1975]
[1734461843673,2.1969,227.55,227.5,3.0903]
[1734461843870,2.1969,227.55,227.51,2.98]
[1734461844987,7.40101537,227.56,227.51,2.98]
[1734461845989,14.70612926,227.64,227.51,5.1773]
[1734461846292,14.70612926,227.64,227.52,5.8286]
[1734461846493,2.1966,227.59,227.52,8.0258]
[1734461846889,14.70612926,227.64,227.52,5.8286]
[1734461847790,2.1966,227.59,227.52,5.8286]
[1734461848094,5.28706901,227.58,227.52,5.8286]